[Event "Early-Titled-Tuesday-Blitz-October-10-2023"]
[Site "Chess.com"]
[Date "2023.10.10"]
[Round "1"]
[White "Perecke"]
[Black "lluiss"]
[Result "0-1"]
[WhiteElo "2548"]
[BlackElo "2180"]
[TimeControl "180+1"]
[EndTime "8:09:39 PDT"]
[Termination "lluiss won by resignation"]

1. e4 {[%clk 0:02:56.5]} 1... c5 {[%clk 0:02:59.2]} 2. d4 {[%clk 0:02:55.4]}
2... cxd4 {[%clk 0:02:58.5]} 3. c3 {[%clk 0:02:55.9]} 3... dxc3 {[%clk
0:02:58.5]} 4. Nxc3 {[%clk 0:02:56.8]} 4... Nc6 {[%clk 0:02:58.1]} 5. Nf3 {[%clk
0:02:56.3]} 5... e6 {[%clk 0:02:58.1]} 6. Bc4 {[%clk 0:02:53.2]} 6... a6 {[%clk
0:02:56.7]} 7. O-O {[%clk 0:02:53.3]} 7... Bb4 {[%clk 0:02:54]} 8. Re1 {[%clk
0:02:51.1]} 8... Bxc3 {[%clk 0:02:50.7]} 9. bxc3 {[%clk 0:02:50.8]} 9... Nge7
{[%clk 0:02:51.6]} 10. e5 {[%clk 0:02:46.1]} 10... Ng6 {[%clk 0:02:38]} 11. Bg5
{[%clk 0:02:38.1]} 11... Qc7 {[%clk 0:02:35.5]} 12. Qe2 {[%clk 0:02:19.5]} 12...
h6 {[%clk 0:02:34.4]} 13. Bd2 {[%clk 0:02:01.6]} 13... O-O {[%clk 0:02:33.9]}
14. Rab1 {[%clk 0:01:58.1]} 14... b5 {[%clk 0:02:33.6]} 15. Bd3 {[%clk 0:01:51]}
15... Nce7 {[%clk 0:02:33.8]} 16. Be4 {[%clk 0:01:49.5]} 16... Rb8 {[%clk
0:02:27.6]} 17. Rec1 {[%clk 0:01:47]} 17... d5 {[%clk 0:02:16.9]} 18. exd6
{[%clk 0:01:37.7]} 18... Qxd6 {[%clk 0:02:17.8]} 19. c4 {[%clk 0:01:32.7]} 19...
Bb7 {[%clk 0:02:01.3]} 20. Bxb7 {[%clk 0:01:26.7]} 20... Rxb7 {[%clk 0:02:00.6]}
21. Bb4 {[%clk 0:01:26.8]} 21... Qf4 {[%clk 0:01:49.2]} 22. cxb5 {[%clk
0:01:17.3]} 22... Rxb5 {[%clk 0:01:39.1]} 23. Rc4 {[%clk 0:00:54.2]} 23... Qb8
{[%clk 0:01:37.6]} 24. a4 {[%clk 0:00:38.3]} 24... Rb7 {[%clk 0:01:34.2]} 25.
Rb2 {[%clk 0:00:34.5]} 25... Nd5 {[%clk 0:01:31.3]} 26. Ba3 {[%clk 0:00:30.6]}
26... Ngf4 {[%clk 0:00:49.2]} 27. Qd2 {[%clk 0:00:30]} 27... Rd8 {[%clk
0:00:41.4]} 28. Rxb7 {[%clk 0:00:20.2]} 28... Qxb7 {[%clk 0:00:40.3]} 29. Rc1
{[%clk 0:00:16.1]} 29... Qb8 {[%clk 0:00:25.3]} 30. Bb2 {[%clk 0:00:15.7]} 30...
Nf6 {[%clk 0:00:14.7]} 31. Qc2 {[%clk 0:00:10.7]} 31... N4d5 {[%clk 0:00:14.5]}
32. Be5 {[%clk 0:00:08.6]} 32... Qb4 {[%clk 0:00:12.7]} 33. Rb1 {[%clk
0:00:08.4]} 33... Qg4 {[%clk 0:00:12.3]} 34. h3 {[%clk 0:00:08.1]} 34... Qf5
{[%clk 0:00:08.5]} 35. Bxf6 {[%clk 0:00:08.1]} 35... Nxf6 {[%clk 0:00:08]} 36.
Qc7 {[%clk 0:00:07.8]} 36... Re8 {[%clk 0:00:07.4]} 37. Rb7 {[%clk 0:00:07.5]}
37... Ne4 {[%clk 0:00:05.7]} 38. Qc2 {[%clk 0:00:04.1]} 38... Ng5 {[%clk
0:00:05]} 39. Qxf5 {[%clk 0:00:03.5]} 39... exf5 {[%clk 0:00:05.3]} 40. Rb6
{[%clk 0:00:04.1]} 40... Nxf3+ {[%clk 0:00:04.9]} 41. gxf3 {[%clk 0:00:03.8]}
41... Ra8 {[%clk 0:00:04.5]} 42. Rb4 {[%clk 0:00:03.5]} 42... g6 {[%clk
0:00:04.6]} 43. a5 {[%clk 0:00:03.5]} 43... Kg7 {[%clk 0:00:05.5]} 44. Rb6
{[%clk 0:00:03.7]} 44... Ra7 {[%clk 0:00:04.4]} 45. Kf1 {[%clk 0:00:04.6]} 45...
g5 {[%clk 0:00:04.6]} 46. Ke2 {[%clk 0:00:04.9]} 46... f4 {[%clk 0:00:04.9]} 47.
Kd3 {[%clk 0:00:05.2]} 47... Rd7+ {[%clk 0:00:04.6]} 48. Ke4 {[%clk 0:00:05.5]}
48... Rd2 {[%clk 0:00:04.7]} 49. Rxa6 {[%clk 0:00:05.5]} 49... Rxf2 {[%clk
0:00:04.9]} 50. Rd6 {[%clk 0:00:05.5]} 50... Re2+ {[%clk 0:00:05]} 51. Kd3
{[%clk 0:00:04.8]} 51... Re1 {[%clk 0:00:05.3]} 52. Kd2 {[%clk 0:00:03.7]} 52...
Ra1 {[%clk 0:00:04.9]} 53. a6 {[%clk 0:00:03.5]} 53... h5 {[%clk 0:00:04.8]} 54.
Rd5 {[%clk 0:00:02.8]} 54... f6 {[%clk 0:00:04.9]} 55. Rd7+ {[%clk 0:00:02.7]}
55... Kg6 {[%clk 0:00:05.8]} 56. a7 {[%clk 0:00:02.7]} 56... Ra2+ {[%clk
0:00:05.4]} 57. Kc3 {[%clk 0:00:02.9]} 57... Ra3+ {[%clk 0:00:05.5]} 58. Kb4
{[%clk 0:00:03.3]} 58... Ra1 {[%clk 0:00:05.9]} 59. Kb5 {[%clk 0:00:03.6]} 59...
g4 {[%clk 0:00:06]} 60. hxg4 {[%clk 0:00:03.4]} 60... hxg4 {[%clk 0:00:06.3]}
61. fxg4 {[%clk 0:00:04.3]} 61... f3 {[%clk 0:00:06.7]} 62. Rd3 {[%clk
0:00:03.6]} 62... Rxa7 {[%clk 0:00:05.2]} 63. Rxf3 {[%clk 0:00:04]} 63... Rb7+
{[%clk 0:00:05.2]} 64. Kc6 {[%clk 0:00:03.8]} 64... Re7 {[%clk 0:00:05.7]} 65.
Kd6 {[%clk 0:00:03.6]} 65... Re5 {[%clk 0:00:06.3]} 66. Rg3 {[%clk 0:00:03.7]}
66... Kg5 {[%clk 0:00:05.8]} 67. Rg1 {[%clk 0:00:04.2]} 67... Re4 {[%clk
0:00:06]} 68. Rf1 {[%clk 0:00:04.3]} 68... Rxg4 {[%clk 0:00:05.5]} 69. Ke6
{[%clk 0:00:04.1]} 69... Re4+ {[%clk 0:00:05.2]} 70. Kd5 {[%clk 0:00:04.4]}
70... f5 {[%clk 0:00:04.9]} 71. Rg1+ {[%clk 0:00:05]} 71... Kf4 {[%clk
0:00:05.1]} 72. Rf1+ {[%clk 0:00:05.1]} 72... Kg5 {[%clk 0:00:05.5]} 73. Rg1+
{[%clk 0:00:05.5]} 73... Kf6 {[%clk 0:00:05.7]} 74. Rf1 {[%clk 0:00:05.6]} 74...
Re2 {[%clk 0:00:06.1]} 75. Rf3 {[%clk 0:00:05.4]} 75... Re8 {[%clk 0:00:06.2]}
76. Rf1 {[%clk 0:00:05.4]} 76... Rd8+ {[%clk 0:00:06.2]} 77. Kc4 {[%clk
0:00:05.1]} 77... Ke5 {[%clk 0:00:06.1]} 78. Re1+ {[%clk 0:00:04.8]} 78... Kf4
{[%clk 0:00:06.1]} 79. Rf1+ {[%clk 0:00:04.4]} 79... Kg5 {[%clk 0:00:06.2]} 80.
Rg1+ {[%clk 0:00:04.5]} 80... Kf6 {[%clk 0:00:06.4]} 81. Rf1 {[%clk 0:00:04.9]}
81... Rd7 {[%clk 0:00:06.2]} 82. Kc3 {[%clk 0:00:04.6]} 82... Rd6 {[%clk
0:00:06.2]} 83. Re1 {[%clk 0:00:04.8]} 83... f4 {[%clk 0:00:05.6]} 84. Rf1
{[%clk 0:00:04.3]} 84... Kf5 {[%clk 0:00:05.9]} 85. Kc4 {[%clk 0:00:02.9]} 85...
Kg4 {[%clk 0:00:06]} 86. Rg1+ {[%clk 0:00:01.7]} 86... Kf3 {[%clk 0:00:05.7]}
87. Rf1+ {[%clk 0:00:02.1]} 87... Kg3 {[%clk 0:00:05.7]} 88. Rg1+ {[%clk
0:00:01.6]} 88... Kf2 {[%clk 0:00:05.6]} 89. Rg8 {[%clk 0:00:01.6]} 89... f3
{[%clk 0:00:05.9]} 90. Rf8 {[%clk 0:00:01.8]} 90... Kg2 {[%clk 0:00:05.3]} 91.
Rg8+ {[%clk 0:00:01.6]} 91... Kf1 {[%clk 0:00:05.6]} 92. Kc3 {[%clk 0:00:01.9]}
92... f2 {[%clk 0:00:06]} 93. Rf8 {[%clk 0:00:01.4]} 93... Rd5 {[%clk
0:00:06.2]} 94. Kc2 {[%clk 0:00:01.3]} 94... Kg2 {[%clk 0:00:05.9]} 95. Rg8+
{[%clk 0:00:01.1]} 95... Kf3 {[%clk 0:00:05.9]} 96. Rf8+ {[%clk 0:00:01.7]}
96... Kg3 {[%clk 0:00:06]} 97. Rg8+ {[%clk 0:00:02.1]} 97... Kf4 {[%clk
0:00:06.2]} 98. Rf8+ {[%clk 0:00:02.5]} 98... Rf5 {[%clk 0:00:06.4]} 0-1

[Event "Early-Titled-Tuesday-Blitz-October-10-2023"]
[Site "Chess.com"]
[Date "2023.10.10"]
[Round "2"]
[White "Baku_Boulevard"]
[Black "DTChess"]
[Result "1-0"]
[WhiteElo "3061"]
[BlackElo "2632"]
[TimeControl "180+1"]
[EndTime "8:13:05 PDT"]
[Termination "Baku_Boulevard won by checkmate"]

1. e4 {[%clk 0:03:00.9]} 1... e5 {[%clk 0:02:59.7]} 2. Nf3 {[%clk 0:03:00.8]}
2... Nc6 {[%clk 0:02:59.8]} 3. Bb5 {[%clk 0:03:01]} 3... a6 {[%clk 0:03:00.1]}
4. Ba4 {[%clk 0:03:01.2]} 4... Nf6 {[%clk 0:02:59.6]} 5. Nc3 {[%clk 0:03:01.4]}
5... b5 {[%clk 0:02:59.3]} 6. Bb3 {[%clk 0:03:01.5]} 6... Be7 {[%clk 0:02:59.9]}
7. a4 {[%clk 0:03:00.4]} 7... Bb7 {[%clk 0:02:59.8]} 8. d3 {[%clk 0:02:54.3]}
8... b4 {[%clk 0:02:57.4]} 9. Nd5 {[%clk 0:02:54.5]} 9... a5 {[%clk 0:02:55.3]}
10. c3 {[%clk 0:02:50.9]} 10... bxc3 {[%clk 0:02:52.5]} 11. bxc3 {[%clk
0:02:51.8]} 11... Rb8 {[%clk 0:02:46.7]} 12. h4 {[%clk 0:02:41]} 12... d6 {[%clk
0:02:46.3]} 13. Ng5 {[%clk 0:02:40.1]} 13... O-O {[%clk 0:02:35.2]} 14. Nxf6+
{[%clk 0:02:30.8]} 14... Bxf6 {[%clk 0:02:34.4]} 15. Qh5 {[%clk 0:02:31.4]}
15... h6 {[%clk 0:02:23.2]} 16. Bxf7+ {[%clk 0:02:29.1]} 16... Rxf7 {[%clk
0:02:19.6]} 17. Qxf7+ {[%clk 0:02:29]} 17... Kh8 {[%clk 0:02:19.8]} 18. Qg6
{[%clk 0:02:29.3]} 18... Bxg5 {[%clk 0:02:11.2]} 19. hxg5 {[%clk 0:02:29.6]}
19... Qe8 {[%clk 0:02:11]} 20. Qxe8+ {[%clk 0:02:29]} 20... Rxe8 {[%clk
0:02:10.8]} 21. gxh6 {[%clk 0:02:29.7]} 21... g6 {[%clk 0:02:11.3]} 22. h7
{[%clk 0:02:28.7]} 22... Ba6 {[%clk 0:02:09.8]} 23. Bg5 {[%clk 0:02:28.2]} 23...
Re6 {[%clk 0:02:05.2]} 24. Rh3 {[%clk 0:02:27.4]} 24... Re8 {[%clk 0:01:59]} 25.
Bf6# {[%clk 0:02:26.5]} 1-0

[Event "Early-Titled-Tuesday-Blitz-October-10-2023"]
[Site "Chess.com"]
[Date "2023.10.10"]
[Round "2"]
[White "YouJustFoundYourGodfather"]
[Black "FairChess_on_YouTube"]
[Result "0-1"]
[WhiteElo "2631"]
[BlackElo "3050"]
[TimeControl "180+1"]
[EndTime "8:13:44 PDT"]
[Termination "FairChess_on_YouTube won by resignation"]

1. g3 {[%clk 0:03:00.9]} 1... d5 {[%clk 0:02:59.3]} 2. Bg2 {[%clk 0:03:01.8]}
2... e5 {[%clk 0:02:58.7]} 3. d3 {[%clk 0:03:01.4]} 3... c6 {[%clk 0:02:56.2]}
4. Nf3 {[%clk 0:03:01]} 4... Bd6 {[%clk 0:02:56.5]} 5. Nbd2 {[%clk 0:03:00.1]}
5... f5 {[%clk 0:02:46.2]} 6. e4 {[%clk 0:03:00.4]} 6... Nf6 {[%clk 0:02:46]} 7.
O-O {[%clk 0:03:00.6]} 7... O-O {[%clk 0:02:45.9]} 8. c3 {[%clk 0:03:00.8]} 8...
Kh8 {[%clk 0:02:44.4]} 9. Qc2 {[%clk 0:02:59.7]} 9... Qe8 {[%clk 0:02:37.8]} 10.
Re1 {[%clk 0:02:54.6]} 10... Qh5 {[%clk 0:02:37.6]} 11. exd5 {[%clk 0:02:52.7]}
11... cxd5 {[%clk 0:02:37.5]} 12. Nf1 {[%clk 0:02:47.7]} 12... Nc6 {[%clk
0:02:34.2]} 13. b4 {[%clk 0:02:41.1]} 13... e4 {[%clk 0:02:28.7]} 14. N3d2
{[%clk 0:02:28.3]} 14... Ne5 {[%clk 0:02:28.2]} 15. d4 {[%clk 0:02:17.6]} 15...
Nd3 {[%clk 0:02:27.3]} 16. Re3 {[%clk 0:02:17.8]} 16... f4 {[%clk 0:02:25.8]}
17. Rxd3 {[%clk 0:02:17.2]} 17... exd3 {[%clk 0:02:24.6]} 18. Qxd3 {[%clk
0:02:18.1]} 18... Bf5 {[%clk 0:02:19.6]} 19. Qb5 {[%clk 0:02:16.1]} 19... Rae8
{[%clk 0:02:15.5]} 20. Nf3 {[%clk 0:02:12.5]} 20... Be4 {[%clk 0:02:03.9]} 21.
Ne5 {[%clk 0:01:57.6]} 21... Bxg2 {[%clk 0:01:58.8]} 22. Kxg2 {[%clk 0:01:57.5]}
22... Bxe5 {[%clk 0:01:58.7]} 23. dxe5 {[%clk 0:01:57.5]} 23... f3+ {[%clk
0:01:59.2]} 24. Kg1 {[%clk 0:01:57.8]} 24... Qh3 {[%clk 0:01:57.2]} 25. Ne3
{[%clk 0:01:57.8]} 25... Ng4 {[%clk 0:01:57.6]} 0-1

[Event "Early-Titled-Tuesday-Blitz-October-10-2023"]
[Site "Chess.com"]
[Date "2023.10.10"]
[Round "2"]
[White "vladislavkovalev"]
[Black "jens1102"]
[Result "1-0"]
[WhiteElo "2886"]
[BlackElo "2595"]
[TimeControl "180+1"]
[EndTime "8:13:47 PDT"]
[Termination "vladislavkovalev won by resignation"]

1. e4 {[%clk 0:03:00.9]} 1... c5 {[%clk 0:02:58.1]} 2. Nf3 {[%clk 0:03:01.2]}
2... Nc6 {[%clk 0:02:55.8]} 3. Bb5 {[%clk 0:02:59.2]} 3... g6 {[%clk 0:02:55.2]}
4. O-O {[%clk 0:02:58.4]} 4... Bg7 {[%clk 0:02:55.1]} 5. c3 {[%clk 0:02:52.2]}
5... e5 {[%clk 0:02:54]} 6. d4 {[%clk 0:02:50.2]} 6... cxd4 {[%clk 0:02:54]} 7.
cxd4 {[%clk 0:02:51.1]} 7... exd4 {[%clk 0:02:54.9]} 8. Bf4 {[%clk 0:02:51.3]}
8... Nge7 {[%clk 0:02:55.3]} 9. Bd6 {[%clk 0:02:51]} 9... O-O {[%clk 0:02:54.6]}
10. Re1 {[%clk 0:02:49.3]} 10... Re8 {[%clk 0:02:53.6]} 11. a3 {[%clk
0:02:30.8]} 11... a6 {[%clk 0:02:51.5]} 12. Bc4 {[%clk 0:02:31.2]} 12... Qb6
{[%clk 0:02:16.2]} 13. b4 {[%clk 0:02:18.4]} 13... d3 {[%clk 0:02:04.5]} 14.
Bxf7+ {[%clk 0:02:13]} 14... Kxf7 {[%clk 0:02:01]} 15. Qb3+ {[%clk 0:02:13.3]}
15... Kf6 {[%clk 0:01:46.8]} 16. e5+ {[%clk 0:02:11.9]} 16... Kf5 {[%clk
0:01:36.2]} 17. Qf7+ {[%clk 0:02:05.5]} 17... Kg4 {[%clk 0:01:33.8]} 18. h3+
{[%clk 0:02:03.2]} 18... Kh5 {[%clk 0:01:33.1]} 19. Qxg7 {[%clk 0:02:03.8]} 1-0

[Event "Early-Titled-Tuesday-Blitz-October-10-2023"]
[Site "Chess.com"]
[Date "2023.10.10"]
[Round "2"]
[White "Krakozia"]
[Black "juancruzarias"]
[Result "1-0"]
[WhiteElo "3017"]
[BlackElo "2629"]
[TimeControl "180+1"]
[EndTime "8:13:59 PDT"]
[Termination "Krakozia won by resignation"]

1. c4 {[%clk 0:03:00.9]} 1... e6 {[%clk 0:02:59]} 2. Nc3 {[%clk 0:03:00.5]} 2...
d5 {[%clk 0:02:58.7]} 3. d4 {[%clk 0:03:01.2]} 3... Nf6 {[%clk 0:02:58.8]} 4.
Bg5 {[%clk 0:03:00.1]} 4... dxc4 {[%clk 0:02:58.5]} 5. e3 {[%clk 0:02:58.5]}
5... c5 {[%clk 0:02:57.9]} 6. Bxc4 {[%clk 0:02:57.5]} 6... cxd4 {[%clk
0:02:58.1]} 7. exd4 {[%clk 0:02:57.5]} 7... Nc6 {[%clk 0:02:56.5]} 8. Nf3 {[%clk
0:02:57.6]} 8... Be7 {[%clk 0:02:55.3]} 9. O-O {[%clk 0:02:58.1]} 9... O-O
{[%clk 0:02:51.3]} 10. Re1 {[%clk 0:02:58.7]} 10... a6 {[%clk 0:02:50.9]} 11. a3
{[%clk 0:02:51.2]} 11... b5 {[%clk 0:02:50.9]} 12. Ba2 {[%clk 0:02:48.7]} 12...
Bb7 {[%clk 0:02:51]} 13. Rc1 {[%clk 0:02:15.2]} 13... Rc8 {[%clk 0:02:47.8]} 14.
Bb1 {[%clk 0:02:15.1]} 14... b4 {[%clk 0:02:43.4]} 15. axb4 {[%clk 0:02:14.2]}
15... Nxb4 {[%clk 0:02:44.3]} 16. Ne5 {[%clk 0:02:13.3]} 16... Nbd5 {[%clk
0:02:40.6]} 17. Qd3 {[%clk 0:02:09.4]} 17... g6 {[%clk 0:02:39.3]} 18. Bh6
{[%clk 0:02:03.4]} 18... Re8 {[%clk 0:02:39.1]} 19. Ba2 {[%clk 0:01:57.9]} 19...
Bf8 {[%clk 0:02:33.1]} 20. Bxf8 {[%clk 0:01:56]} 20... Rxf8 {[%clk 0:02:33.6]}
21. Qg3 {[%clk 0:01:50.6]} 21... Nh5 {[%clk 0:02:28.2]} 22. Qg4 {[%clk
0:01:47.1]} 22... Ndf6 {[%clk 0:02:20.3]} 23. Qh4 {[%clk 0:01:43.9]} 23... Nd5
{[%clk 0:02:15.8]} 24. Qxd8 {[%clk 0:01:42.6]} 24... Rfxd8 {[%clk 0:02:15.2]}
25. Bxd5 {[%clk 0:01:39.7]} 25... Bxd5 {[%clk 0:02:15.6]} 26. Nxd5 {[%clk
0:01:39.2]} 26... Rxc1 {[%clk 0:02:10.4]} 27. Ne7+ {[%clk 0:01:38.5]} 27... Kf8
{[%clk 0:02:10.1]} 28. Rxc1 {[%clk 0:01:38.3]} 28... Kxe7 {[%clk 0:02:10.2]} 29.
Nc6+ {[%clk 0:01:37.9]} 1-0

[Event "Early-Titled-Tuesday-Blitz-October-10-2023"]
[Site "Chess.com"]
[Date "2023.10.10"]
[Round "2"]
[White "Kirill_Klukin"]
[Black "esrosenberg"]
[Result "1-0"]
[WhiteElo "2677"]
[BlackElo "2369"]
[TimeControl "180+1"]
[EndTime "8:14:07 PDT"]
[Termination "Kirill_Klukin won by resignation"]

1. e4 {[%clk 0:03:00.9]} 1... e5 {[%clk 0:03:00.2]} 2. Nf3 {[%clk 0:02:56.5]}
2... Nc6 {[%clk 0:03:00.9]} 3. d4 {[%clk 0:02:56.3]} 3... exd4 {[%clk
0:03:00.9]} 4. Nxd4 {[%clk 0:02:57.2]} 4... Nf6 {[%clk 0:03:01]} 5. Nxc6 {[%clk
0:02:51.5]} 5... bxc6 {[%clk 0:03:01.9]} 6. e5 {[%clk 0:02:52.1]} 6... Qe7
{[%clk 0:03:02.2]} 7. Qe2 {[%clk 0:02:52]} 7... Nd5 {[%clk 0:03:02.4]} 8. c4
{[%clk 0:02:52.4]} 8... Ba6 {[%clk 0:03:03.1]} 9. b3 {[%clk 0:02:51]} 9... g6
{[%clk 0:03:03.2]} 10. Bb2 {[%clk 0:02:51.3]} 10... Bg7 {[%clk 0:03:03.9]} 11.
g3 {[%clk 0:02:51.3]} 11... O-O {[%clk 0:03:04.5]} 12. Bg2 {[%clk 0:02:52]}
12... Rae8 {[%clk 0:03:04.9]} 13. O-O {[%clk 0:02:48.1]} 13... Bxe5 {[%clk
0:03:05.4]} 14. Bxe5 {[%clk 0:02:40.1]} 14... Qxe5 {[%clk 0:03:06.3]} 15. Qxe5
{[%clk 0:02:40.4]} 15... Rxe5 {[%clk 0:03:06.7]} 16. cxd5 {[%clk 0:02:40.9]}
16... Bxf1 {[%clk 0:03:07.3]} 17. Kxf1 {[%clk 0:02:22.3]} 17... cxd5 {[%clk
0:03:06.9]} 18. Nd2 {[%clk 0:02:13.4]} 18... c6 {[%clk 0:03:03.5]} 19. Rc1
{[%clk 0:02:04.8]} 19... Rfe8 {[%clk 0:03:02.8]} 20. Bf3 {[%clk 0:02:04.8]}
20... Kf8 {[%clk 0:02:55.1]} 21. Rc5 {[%clk 0:01:49.6]} 21... Rb8 {[%clk
0:02:51]} 22. Ra5 {[%clk 0:01:46.3]} 22... Rb7 {[%clk 0:02:50.2]} 23. Nc4 {[%clk
0:01:38.1]} 23... Re6 {[%clk 0:02:49.6]} 24. Ne3 {[%clk 0:01:38.3]} 24... Ke7
{[%clk 0:02:44.1]} 25. h4 {[%clk 0:01:31.8]} 25... h5 {[%clk 0:02:43.5]} 26. Ng2
{[%clk 0:01:27.8]} 26... Kd8 {[%clk 0:02:36.1]} 27. Nf4 {[%clk 0:01:27.5]} 27...
Rf6 {[%clk 0:02:34.5]} 28. Ra6 {[%clk 0:01:27.1]} 28... Kc7 {[%clk 0:02:26]} 29.
Nxd5+ {[%clk 0:01:26.1]} 1-0

[Event "Early-Titled-Tuesday-Blitz-October-10-2023"]
[Site "Chess.com"]
[Date "2023.10.10"]
[Round "2"]
[White "kikoveiga"]
[Black "mishanick"]
[Result "0-1"]
[WhiteElo "2633"]
[BlackElo "3075"]
[TimeControl "180+1"]
[EndTime "8:14:09 PDT"]
[Termination "mishanick won by resignation"]

1. Nf3 {[%clk 0:03:00.9]} 1... d5 {[%clk 0:02:56.7]} 2. e3 {[%clk 0:02:55]} 2...
c5 {[%clk 0:02:54.4]} 3. b3 {[%clk 0:02:49.4]} 3... Nc6 {[%clk 0:02:43.8]} 4.
Bb5 {[%clk 0:02:49.2]} 4... f6 {[%clk 0:02:44.1]} 5. Bxc6+ {[%clk 0:02:27]} 5...
bxc6 {[%clk 0:02:45]} 6. d4 {[%clk 0:02:27.8]} 6... cxd4 {[%clk 0:02:44.5]} 7.
exd4 {[%clk 0:02:28.7]} 7... e6 {[%clk 0:02:33.3]} 8. O-O {[%clk 0:02:29.6]}
8... Bd6 {[%clk 0:02:33.1]} 9. Ba3 {[%clk 0:02:28]} 9... Ne7 {[%clk 0:02:32.5]}
10. Bxd6 {[%clk 0:02:27.7]} 10... Qxd6 {[%clk 0:02:33.4]} 11. Nbd2 {[%clk
0:02:27.9]} 11... O-O {[%clk 0:02:33.7]} 12. Re1 {[%clk 0:02:27.3]} 12... Ng6
{[%clk 0:02:34.1]} 13. c4 {[%clk 0:02:24.2]} 13... Bb7 {[%clk 0:02:34.3]} 14.
Qc2 {[%clk 0:02:15.2]} 14... e5 {[%clk 0:02:32.3]} 15. cxd5 {[%clk 0:02:12.7]}
15... cxd5 {[%clk 0:02:33.1]} 16. dxe5 {[%clk 0:01:52.2]} 16... fxe5 {[%clk
0:02:34]} 17. Qb2 {[%clk 0:01:51.8]} 17... e4 {[%clk 0:02:31]} 18. Nd4 {[%clk
0:01:46.1]} 18... Nf4 {[%clk 0:02:31.2]} 19. Qc3 {[%clk 0:01:14]} 19... Qg6
{[%clk 0:02:09.6]} 20. Qg3 {[%clk 0:01:12.6]} 20... Qf6 {[%clk 0:02:10.2]} 21.
Ne2 {[%clk 0:01:06.1]} 21... Nxe2+ {[%clk 0:02:09.2]} 0-1

[Event "Early-Titled-Tuesday-Blitz-October-10-2023"]
[Site "Chess.com"]
[Date "2023.10.10"]
[Round "2"]
[White "falzehope0"]
[Black "masterofpuppets2"]
[Result "0-1"]
[WhiteElo "2305"]
[BlackElo "2519"]
[TimeControl "180+1"]
[EndTime "8:14:14 PDT"]
[Termination "masterofpuppets2 won by resignation"]

1. d4 {[%clk 0:02:49.3]} 1... Nf6 {[%clk 0:02:59.8]} 2. e3 {[%clk 0:02:48.7]}
2... g6 {[%clk 0:02:59.8]} 3. Bd3 {[%clk 0:02:48.6]} 3... Bg7 {[%clk 0:03:00.1]}
4. f4 {[%clk 0:02:49.1]} 4... O-O {[%clk 0:03:00.2]} 5. Nf3 {[%clk 0:02:49.6]}
5... d6 {[%clk 0:03:00.9]} 6. O-O {[%clk 0:02:49.1]} 6... Nc6 {[%clk 0:03:01.5]}
7. e4 {[%clk 0:02:47.9]} 7... Bg4 {[%clk 0:02:43.4]} 8. d5 {[%clk 0:02:46]} 8...
Nd4 {[%clk 0:02:40.7]} 9. c3 {[%clk 0:02:45.8]} 9... Nxf3+ {[%clk 0:02:38.2]}
10. gxf3 {[%clk 0:02:46.7]} 10... Bh3 {[%clk 0:02:38]} 11. Rf2 {[%clk
0:02:42.1]} 11... e6 {[%clk 0:02:30.5]} 12. c4 {[%clk 0:02:40.2]} 12... Nh5
{[%clk 0:02:28.8]} 13. Be3 {[%clk 0:02:29]} 13... Qh4 {[%clk 0:02:22]} 14. Qd2
{[%clk 0:02:25.9]} 14... Bh6 {[%clk 0:02:22]} 15. f5 {[%clk 0:02:10.9]} 15...
Bxe3 {[%clk 0:02:18.7]} 16. Qxe3 {[%clk 0:02:09.4]} 16... gxf5 {[%clk
0:02:05.4]} 17. dxe6 {[%clk 0:02:00.9]} 17... f4 {[%clk 0:01:58.2]} 18. exf7+
{[%clk 0:01:59.8]} 18... Rxf7 {[%clk 0:01:58.9]} 19. Qd4 {[%clk 0:01:56.9]}
19... Rg7+ {[%clk 0:01:45.7]} 20. Kh1 {[%clk 0:01:54.7]} 20... c5 {[%clk
0:01:46.1]} 21. Qd5+ {[%clk 0:01:47.3]} 21... Kh8 {[%clk 0:01:46.3]} 22. Re2
{[%clk 0:01:42.1]} 22... Bg2+ {[%clk 0:01:38.8]} 23. Rxg2 {[%clk 0:01:37.4]}
23... Qe1+ {[%clk 0:01:38.5]} 0-1

[Event "Early-Titled-Tuesday-Blitz-October-10-2023"]
[Site "Chess.com"]
[Date "2023.10.10"]
[Round "2"]
[White "ExchangeAB"]
[Black "ljm509"]
[Result "1-0"]
[WhiteElo "2499"]
[BlackElo "2252"]
[TimeControl "180+1"]
[EndTime "8:14:27 PDT"]
[Termination "ExchangeAB won by resignation"]

1. d4 {[%clk 0:03:00.9]} 1... e6 {[%clk 0:01:58.7]} 2. Bf4 {[%clk 0:02:57.3]}
2... d5 {[%clk 0:01:58.6]} 3. e3 {[%clk 0:02:57.4]} 3... Bd6 {[%clk 0:01:58.5]}
4. Nc3 {[%clk 0:02:56.2]} 4... a6 {[%clk 0:01:55.4]} 5. Bd3 {[%clk 0:02:54.6]}
5... Nf6 {[%clk 0:01:55.2]} 6. Nf3 {[%clk 0:02:54.6]} 6... c5 {[%clk 0:01:55]}
7. dxc5 {[%clk 0:02:53.5]} 7... Bxc5 {[%clk 0:01:54.7]} 8. e4 {[%clk 0:02:53.9]}
8... dxe4 {[%clk 0:01:50.1]} 9. Nxe4 {[%clk 0:02:54.1]} 9... Nxe4 {[%clk
0:01:49.4]} 10. Bxe4 {[%clk 0:02:55]} 10... Qa5+ {[%clk 0:01:46.2]} 11. c3
{[%clk 0:02:52.5]} 11... Qb6 {[%clk 0:01:45.2]} 12. O-O {[%clk 0:02:50]} 12...
O-O {[%clk 0:01:43.1]} 13. Bxh7+ {[%clk 0:02:24]} 13... Kxh7 {[%clk 0:01:42.4]}
14. Ng5+ {[%clk 0:02:24]} 14... Kg6 {[%clk 0:01:43]} 15. Qg4 {[%clk 0:02:24.4]}
15... e5 {[%clk 0:01:39.3]} 16. Ne6+ {[%clk 0:02:05.4]} 16... Kf6 {[%clk
0:01:29.6]} 17. Bg5+ {[%clk 0:02:04.9]} 17... Kg6 {[%clk 0:01:28.6]} 18. Nxf8+
{[%clk 0:02:03.8]} 18... Bxf8 {[%clk 0:01:24.8]} 19. Qxc8 {[%clk 0:01:53]} 19...
Kxg5 {[%clk 0:01:21.6]} 20. Qxf8 {[%clk 0:01:52.4]} 20... Kg6 {[%clk 0:01:16.5]}
21. Rad1 {[%clk 0:01:50.5]} 1-0